lending/lending_fUSD_20250121
["ID","MTS","AMOUNT","RATE_DAILY","PERIOD"]
[349823233,1737451871057,-500.0,0.00021643,2]
[349823234,1737451871069,-500.0,0.00021643,2]
[349823235,1737451871080,-1366.89,0.00021643,2]
[349823236,1737451871090,-500.0,0.00021643,2]
[349823237,1737451871100,-643.51,0.00021643,2]
[349823238,1737451871110,-500.0,0.00021643,2]
[349823239,1737451871119,-500.0,0.00021643,2]
[349823240,1737451871129,-500.0,0.00021643,2]
[349823241,1737451871139,-500.0,0.00021643,2]
[349823242,1737451871148,-500.0,0.00021643,2]
[349823243,1737451871158,-687.44,0.00021643,2]
[349823244,1737451871167,-500.0,0.00021643,2]
[349823245,1737451871177,-500.0,0.00021643,2]
[349823246,1737451871186,-565.39,0.00021643,2]
[349823247,1737451871195,-222.72338611,0.00021643,2]
[349823248,1737451871205,-500.0,0.00021643,2]
[349823249,1737451871214,-984.73,0.00021643,2]
[349823250,1737451871224,-517.21833028,0.00021643,2]
[349823251,1737451871234,-703.52,0.00021643,2]
[349823252,1737451871243,-500.0,0.00021643,2]
[349823253,1737451871252,-196.76483455,0.00021643,2]
[349823254,1737451871261,-500.0,0.00021643,2]
[349823255,1737451871276,-648.42,0.00021643,2]
[349823256,1737451871285,-1458.78,0.00021643,2]
[349823257,1737451871294,-500.0,0.00021643,2]
[349823258,1737451871303,-500.0,0.00021643,2]
[349823259,1737451871313,-500.0,0.00021643,2]
[349823260,1737451871322,-500.0,0.00021643,2]
[349823261,1737451871331,-500.0,0.00021643,2]
[349823262,1737451871340,-500.0,0.00021643,2]
[349823263,1737451871350,-500.0,0.00021643,2]
[349823264,1737451871359,-500.0,0.00021643,2]
[349823265,1737451871368,-500.0,0.00021643,2]
[349823266,1737451871379,-500.0,0.00021643,2]
[349823267,1737451871389,-500.0,0.00021643,2]
[349823268,1737451871400,-500.0,0.00021643,2]
[349823269,1737451871409,-500.0,0.00021643,2]
[349823270,1737451871419,-500.0,0.00021643,2]
[349823271,1737451871429,-500.0,0.00021643,2]
[349823272,1737451871439,-500.0,0.00021643,2]
[349823273,1737451871448,-568.81,0.00021643,2]
[349823274,1737451871458,-500.0,0.00021643,2]
[349823275,1737451871469,-151.0,0.00021643,2]
[349823276,1737451871479,-500.0,0.00021643,2]
[349823277,1737451871488,-500.0,0.00021643,2]
[349823278,1737451871498,-210.409996,0.00021643,2]
[349823279,1737451871507,-577.612484,0.00021643,2]
[349823280,1737451871518,-210.409996,0.00021643,2]
[349823281,1737451871528,-577.612484,0.00021643,2]
[349823282,1737451871537,-1180.87,0.00021643,2]
[349823283,1737451871547,-500.0,0.00021643,2]
[349823284,1737451871556,-1042.35,0.00021643,2]
[349823285,1737451871565,-500.0,0.00021643,2]
[349823286,1737451871575,-500.0,0.00021643,2]
[349823287,1737451871584,-1431.03,0.00021643,2]
[349823288,1737451871594,-1442.47,0.00021643,2]
[349823289,1737451871603,-1618.9,0.00021643,2]
[349823290,1737451871612,-784.62,0.00021643,2]
[349823291,1737451871622,-1181.46,0.00021643,2]
[349823292,1737451871631,-700.2,0.00021643,2]
[349823293,1737451871642,-500.0,0.00021643,2]
[349823294,1737451871651,-864.13,0.00021643,2]
[349823295,1737451871661,-1046.8,0.00021643,2]
[349823296,1737451871670,-2225.67,0.00021643,2]
[349823297,1737451871679,-997.49,0.00021643,2]
[349823298,1737451871689,-500.0,0.00021643,2]
[349823299,1737451871699,-643.01,0.00021643,2]
[349823300,1737451871708,-500.0,0.00021643,2]
[349823301,1737451871717,-1363.79,0.00021643,2]
[349823302,1737451871727,-968.6,0.00021643,2]
[349823303,1737451871736,-731.54,0.00021643,2]
[349823304,1737451871746,-671.55,0.00021643,2]
[349823305,1737451871756,-500.0,0.00021643,2]
[349823306,1737451871767,-1512.89,0.00021643,2]
[349823307,1737451871777,-1824.0,0.00021643,2]
[349823308,1737451871786,-500.0,0.00021643,2]
[349823309,1737451871795,-720.36,0.00021643,2]
[349823310,1737451871805,-500.0,0.00021643,2]
[349823311,1737451871814,-1598.88,0.00021643,2]
[349823312,1737451871824,-300.0,0.00021643,2]
[349823313,1737451871834,-1625.7,0.00021643,2]
[349823314,1737451871843,-500.0,0.00021643,2]
[349823315,1737451871853,-11076.26,0.00021643,2]
[349823316,1737451871863,-714.81,0.00021643,2]
[349823317,1737451871872,-500.0,0.00021663,7]
[349823318,1737451871882,-500.0,0.00021663,7]
[349823319,1737451871892,-500.0,0.00021663,7]
[349823320,1737451871902,-500.0,0.00021663,7]
[349823321,1737451871911,-500.0,0.00021663,7]
[349823322,1737451871921,-500.0,0.00021663,7]
[349823323,1737451871931,-500.0,0.00021663,7]
[349823324,1737451871940,-401.27,0.00021663,7]
[349823325,1737451871950,-500.0,0.00021663,7]
[349823326,1737451871959,-500.0,0.00021663,7]
[349823327,1737451871968,-500.0,0.00021663,7]
[349823328,1737451871980,-500.0,0.00021663,7]
[349823329,1737451871989,-500.0,0.00021663,7]
[349823330,1737451871998,-500.0,0.00021663,7]
[349823331,1737451872008,-500.0,0.00021663,7]
[349823332,1737451872022,-500.0,0.00021663,7]
[349823333,1737451872032,-500.0,0.00021663,7]
[349823334,1737451872044,-500.0,0.00021663,7]
[349823335,1737451872054,-500.0,0.00021663,7]
[349823336,1737451872064,-500.0,0.00021663,7]
[349823337,1737451872074,-500.0,0.00021663,7]
[349823338,1737451872084,-500.0,0.00021663,7]
[349823339,1737451872094,-500.0,0.00021663,7]
[349823340,1737451872104,-500.0,0.00021663,7]
[349823341,1737451872114,-500.0,0.00021663,7]
[349823342,1737451872124,-500.0,0.00021663,7]
[349823343,1737451872134,-500.0,0.00021663,7]
[349823344,1737451872144,-500.0,0.00021663,7]
[349823345,1737451872154,-500.0,0.00021663,7]
[349823346,1737451872163,-500.0,0.00021663,7]
[349823347,1737451872172,-500.0,0.00021663,7]
[349823348,1737451872182,-500.0,0.00021663,7]
[349823349,1737451872191,-500.0,0.00021663,7]
[349823350,1737451872201,-500.0,0.00021663,7]
[349823351,1737451872210,-500.0,0.00021663,7]
[349823352,1737451872220,-500.0,0.00021663,7]
[349823353,1737451872229,-500.0,0.00021663,7]
[349823354,1737451872239,-500.0,0.00021663,7]
[349823355,1737451872250,-431.04,0.00021663,7]
[349823356,1737451872261,-457.43396546,0.00021666,2]
[349823357,1737451872277,-22825.12974333,0.0002167,2]
[349823358,1737451872288,-150.0,0.0002168,2]
[349823359,1737451872299,-3484.07,0.00021685,7]
[349823360,1737451872311,-3484.07,0.00021685,7]
[349823361,1737451872321,-300.0,0.000217,7]
[349823362,1737451872332,-1000.0,0.000217,2]
[349823363,1737451872344,-150.0,0.00021703,2]
[349823364,1737451872355,-405.71652636,0.00021725,2]
[349823365,1737451872365,-5412.40788979,0.00021726,2]
[349823366,1737451872378,-568.72042387,0.00021728,2]
[349823367,1737451872391,-56948.11773028,0.00021731,2]
[349823368,1737451872403,-4576.41827476,0.00021732,2]
[349823369,1737451872415,-3320.32470316,0.00021732,2]
[349823370,1737451872427,-211.60412933,0.00021735,2]
[349823371,1737451872438,-240.31966049,0.00021737,2]
[349823372,1737451872449,-211.60412933,0.00021737,2]
[349823373,1737451872460,-200.0,0.00021738,2]
[349823374,1737451872474,-3820.81913477,0.00021739,2]
[349823375,1737451872485,-56948.11773028,0.00021741,2]
[349823376,1737451872495,-4576.41827476,0.00021743,2]
[349823377,1737451872505,-56948.11773028,0.00021743,2]
[349823378,1737451872521,-442.94854789,0.00021743,2]
[349823379,1737451872532,-47188.13612214,0.00021743,2]
[349823380,1737451872542,-568.72042387,0.00021743,2]
[349823381,1737451872551,-8118.6118347,0.00021745,2]
[349823382,1737451872560,-9363.60662886,0.00021746,2]
[349823383,1737451872570,-3320.32470316,0.00021746,2]
[349823384,1737451872579,-9363.60662886,0.00021748,2]
[349823385,1737451872589,-211.60412933,0.00021749,2]
[349823386,1737451872599,-9152.83654951,0.00021749,2]
[349823387,1737451872609,-1159.66791995,0.0002175,2]
[349823388,1737451872713,-5412.40788979,0.00021751,2]
[349823389,1737451872723,-56948.11773028,0.00021751,2]
[349823390,1737451872733,-37718.25295147,0.00021752,2]
[349823391,1737451872743,-211.60412933,0.00021755,2]
[349823392,1737451872753,-442.94854789,0.00021756,2]
[349823393,1737451872762,-5063.3945,0.00021756,30]
[349823394,1737451872774,-240.31966049,0.00021757,2]
[349823395,1737451872784,-1159.66791995,0.00021758,2]
[349823396,1737451872793,-37718.25295147,0.00021763,2]
[349823397,1737451872803,-6689.74396254,0.00021763,2]
[349823398,1737451872812,-568.72042387,0.00021765,2]
[349823399,1737451872822,-240.31966049,0.00021767,2]
[349823400,1737451872831,-56948.11773028,0.00021769,2]
[349823401,1737451872841,-4576.41827476,0.0002177,2]
[349823402,1737451872850,-6689.74396254,0.00021771,2]
[349823403,1737451872859,-8118.6118347,0.00021772,2]
[349823404,1737451872869,-568.72042387,0.00021773,2]
[349823405,1737451872878,-98580.48007377,0.00021775,2]
[349823406,1737451872887,-6689.74396254,0.00021776,2]
[349823407,1737451872897,-8118.6118347,0.00021777,2]
[349823408,1737451872907,-3820.81913477,0.00021778,2]
[349823409,1737451872916,-3000.0,0.0002178,2]
[349823410,1737451872926,-37718.25295147,0.00021782,2]
[349823411,1737451872936,-98580.48007377,0.00021783,2]
[349823412,1737451872946,-150.0,0.00021786,2]
[349823413,1737451872956,-47188.13612214,0.00021787,2]
[349823414,1737451872966,-8118.6118347,0.00021788,2]
[349823415,1737451872975,-11757.20080591,0.00021789,2]
[349823416,1737451872985,-921.4559759,0.00021789,2]
[349823417,1737451872995,-2491.79134546,0.00021791,2]
[349823418,1737451873005,-56948.11773028,0.00021791,2]
[349823419,1737451873015,-11757.20080591,0.00021792,2]
[349823420,1737451873027,-200.0,0.00021794,2]
[349823421,1737451873037,-3320.32470316,0.00021795,2]
[349823422,1737451873047,-37718.25295147,0.00021798,2]
[349823423,1737451873057,-6689.74396254,0.000218,2]
[349823424,1737451873066,-810.0,0.000218,7]
[349823425,1737451873076,-153.76225086,0.000218,2]
[349823426,1737451873086,-2426.31,0.000218,2]
[349823427,1737451873097,-1000.0,0.000218,2]
[349823428,1737451873106,-442.94854789,0.00021801,2]
[349823429,1737451873116,-8118.6118347,0.00021801,2]
[349823430,1737451873125,-568.72042387,0.00021801,2]
[349823431,1737451873135,-9152.83654951,0.00021802,2]
[349823432,1737451873144,-5552.30311479,0.00021804,2]
[349823433,1737451873153,-200.0,0.00021805,2]
[349823434,1737451873163,-4576.41827476,0.00021806,2]
[349823435,1737451873173,-9363.60662886,0.00021806,2]
[349823436,1737451873183,-3320.32470316,0.00021807,2]
[349823437,1737451873192,-2491.79134546,0.00021811,2]
[349823438,1737451873201,-200.0,0.00021814,2]
[349823439,1737451873210,-9152.83654951,0.00021815,2]
[349823440,1737451873220,-47807.84396213,0.00021816,2]
[349823441,1737451873459,-1450.91766586,0.00021816,2]
[349823442,1737451873791,-500.0,0.00019178,2]
[349823443,1737451873802,-500.0,0.00019178,2]
[349823444,1737451873811,-500.0,0.0001945,2]
[349823445,1737451873821,-106.60486625,0.00019452,2]
[349823446,1737451873850,-393.39513375,0.00019452,2]
[349823447,1737451873956,-245.10981962,0.00019726,2]
[349823448,1737451874040,-500.0,0.00019724,2]
[349823449,1737451874051,-254.89018038,0.00019726,2]
[349823450,1737451874061,-506.46,0.0002,2]
[349823451,1737451874071,-7689.35610229,0.00021816,2]
[349823452,1737451874080,-2289.14123732,0.00021817,2]
[349823453,1737451874129,-202.65010814,0.00021817,2]
[349823454,1737451874138,-2610.1565641,0.00021818,2]
[349823455,1737451874153,-909.2355388,0.00021818,2]
[349823456,1737451874168,-314.43996458,0.00021818,2]
[349823457,1737451874179,-542.64,0.00021818,2]
[349823458,1737451874400,-277.07762661,0.00019178,2]
[349823459,1737451874411,-222.92237339,0.00019178,2]
[349823460,1737451874420,-500.0,0.00019178,2]
[349823461,1737451874430,-500.0,0.0001945,2]
[349823462,1737451874439,-500.0,0.0001945,2]
[349823463,1737451874448,-500.0,0.0001945,2]
[349823464,1737451874456,-500.0,0.00019452,2]
[349823465,1737451874467,-500.0,0.00019724,2]
[349823466,1737451874476,-500.0,0.00019724,2]
[349823467,1737451874486,-500.0,0.00019726,2]
[349823468,1737451874494,-204.48688617,0.000199,2]
[349823469,1737451874503,-500.0,0.00019998,2]
[349823470,1737451874512,-192.12,0.00019998,2]
[349823471,1737451874526,-500.0,0.00019998,2]
[349823472,1737451874535,-541.66,0.0002,2]
[349823473,1737451874545,-204.4868861,0.00020011,2]
[349823474,1737451874555,-500.0,0.00020272,2]
[349823475,1737451874575,-500.0,0.00020272,2]
[349823476,1737451874591,-500.0,0.00020546,2]
[349823477,1737451874610,-500.0,0.0002082,2]
[349823478,1737451874627,-500.0,0.00021094,2]
[349823479,1737451874644,-500.0,0.00021368,2]
[349823480,1737451874663,-500.0,0.00021642,2]
[349823481,1737451874681,-4776.36448203,0.00021818,2]
[349823482,1737451874698,-200.0,0.00021822,2]
[349823483,1737451874717,-11217.95937231,0.00021823,2]
[349823484,1737451874737,-250.71945763,0.00021823,2]
[349823485,1737451874765,-500.0,0.00020546,2]
[349823486,1737451874785,-5299.05733318,0.00021823,2]
[349823487,1737451874802,-309.410002,0.00021823,2]
[349823488,1737451874830,-204.4868861,0.00020122,2]
[349823489,1737451874845,-911.1131959,0.00021823,2]
[349823490,1737451874864,-4993.16604473,0.00021823,2]
[349823491,1737451874882,-1000.0,0.00021823,2]
[349823492,1737451875286,-185.84232323,0.000119,2]
[349823493,1737451875296,-500.0,0.00019178,2]
[349823494,1737451875306,-252.48049364,0.00019178,2]
[349823495,1737451875317,-247.51950636,0.00019178,2]
[349823496,1737451875327,-500.0,0.00019178,2]
[349823497,1737451875337,-500.0,0.0001945,2]
[349823498,1737451875347,-500.0,0.00019452,2]
[349823499,1737451875357,-418.93784434,0.00019452,2]
[349823500,1737451875373,-81.06215566,0.00019452,2]
[349823501,1737451875384,-502.73,0.00019724,2]
[349823502,1737451875396,-204.4868861,0.00020233,2]
[349823503,1737451875406,-204.4868861,0.00020344,2]
[349823504,1737451875415,-204.4868861,0.00020456,2]
[349823505,1737451875427,-204.4868861,0.00020567,2]
[349823506,1737451875702,-204.4868861,0.00020678,2]
[349823507,1737451875722,-204.4868861,0.00020789,2]
[349823508,1737451875740,-500.0,0.0002082,2]
[349823509,1737451875752,-204.4868861,0.000209,2]
[349823510,1737451875763,-1180.691,0.00021,2]
[349823511,1737451875782,-57.22971943,0.00021,2]
[349823512,1737451875795,-93.77028057,0.00021,2]
[349823513,1737451875805,-204.4868861,0.00021011,2]
[349823514,1737451875815,-500.0,0.00021094,2]
[349823515,1737451875825,-121.19283358,0.00021178,2]
[349823516,1737451875918,-500.0,0.00019178,2]
[349823517,1737451875928,-136.28420447,0.00021122,2]
[349823518,1737451960264,152.62,0.00010137,2]
[349823520,1737452783636,150.0,0.00024,120]
[349823521,1737452860805,333.0,0.00024,120]
[349823522,1737452874621,300.0,0.00024,120]
[349823538,1737453032252,-165.25,0.00012112,2]
[349823539,1737453032262,-433.64450293,0.00013806,2]
[349823540,1737453032272,-433.64450292,0.00013845,2]
[349823541,1737453032281,-1067.06,0.00013906,2]
[349823542,1737453032291,-1323.516998,0.00013983,2]
[349823543,1737453032300,-1000.0,0.00014422,2]
[349823544,1737453032310,-332.62,0.00014463,2]
[349823545,1737453032319,-250.0,0.00014589,2]
[349823546,1737453032329,-172.33,0.00014861,2]
[349823547,1737453032338,-300.0,0.00014934,2]
[349823548,1737453032348,-20445.15,0.00014935,2]
[349823549,1737453032357,-550.0,0.00015,2]
[349823550,1737453032366,-518.99663399,0.00015039,2]
[349823551,1737453032499,-150.0,0.00015138,2]
[349823552,1737453032509,-1447.43,0.00015139,2]
[349823553,1737453032518,-15804.37889559,0.00015139,2]
[349823554,1737453032530,-8095.62110441,0.00015139,2]
[349823555,1737453032539,-200.0,0.00015139,2]
[349823556,1737453032549,-250.0,0.00015139,2]
[349823557,1737453032558,-189.17,0.00015163,2]
[349823558,1737453032567,-839.88,0.00015226,2]
[349823559,1737453032576,-580.42,0.00015237,2]
[349823560,1737453032586,-319.56,0.00015237,2]
[349823561,1737453032595,-169.91,0.00015237,2]
[349823562,1737453032605,-630.89,0.00015918,2]
[349823563,1737453032615,-250.0,0.00016,2]
[349823564,1737453032625,-211.71437372,0.00016003,2]
[349823565,1737453032635,-1067.06,0.0001617,2]
[349823566,1737453032645,-1000.0,0.00016225,2]
[349823568,1737453032655,-420.0,0.00016346,2]
[349823569,1737453032664,-300.0,0.00016509,2]
[349823571,1737453032674,-667.57,0.00016658,30]
[349823573,1737453032683,-200.35494435,0.000169,2]
[349823575,1737453032693,-161.33,0.00017011,2]
[349823577,1737453032701,-200.35494415,0.00017079,2]
[349823579,1737453032711,-18405.0,0.00017174,2]
[349823580,1737453032720,-200.35494415,0.00017257,2]
[349823582,1737453032729,-518.99663399,0.00017326,2]
[349823584,1737453032740,-200.35494415,0.00017436,2]
[349823586,1737453032750,-152.62,0.00017599,2]
[349823588,1737453032759,-200.35494415,0.00017614,2]
[349823590,1737453032768,-169.91,0.00017777,2]
[349823592,1737453032778,-200.35494415,0.00017793,2]
[349823594,1737453032787,-300.0,0.00017879,2]
[349823595,1737453032796,-467.24571457,0.0001789,2]
[349823597,1737453032808,-119.75428543,0.0001789,2]
[349823599,1737453032819,-630.89,0.00017907,2]
[349823601,1737453032828,-200.35494415,0.00017971,2]
[349823603,1737453032837,-495.33858635,0.00018027,2]
[349823607,1737453032865,-504.66141365,0.00018027,2]
[349823609,1737453032874,-171.77,0.00018082,2]
[349823610,1737453032883,-200.35494415,0.0001815,2]
[349823612,1737453032892,-1000.0,0.00018291,2]
[349823614,1737453032901,-200.35494415,0.00018329,2]
[349823616,1737453032911,-1067.06,0.00018434,2]
[349823618,1737453032920,-200.35494415,0.00018507,2]
[349823620,1737453032929,-1529.657,0.00018603,2]
[349823622,1737453032938,-430.0,0.0001863,2]
[349823624,1737453032947,-200.35494415,0.00018686,2]
[349823625,1737453032957,-200.35494415,0.00018864,2]
[349823627,1737453032966,-14488.99890244,0.000189,2]
[349823629,1737453032977,-23217.63427755,0.000189,2]
[349823631,1737453032986,-32376.95532035,0.0001899,2]
[349823634,1737453033002,-5394.188505,0.0001899,2]
[349823637,1737453033030,-56113.73423362,0.0001899,2]
[349823639,1737453033040,-228.84541576,0.00019,2]
[349823641,1737453033049,-200.35494415,0.00019043,2]
[349823643,1737453033059,-12829.19937427,0.00019078,2]
[349823645,1737453033068,-173.79,0.00019168,2]
[349823647,1737453033078,-151.59568369,0.00019173,2]
[349823649,1737453033088,-502.54826994,0.00019173,2]
[349823651,1737453033096,-162.47767584,0.00019173,2]
[349823652,1737453033106,-163.36438511,0.00019173,2]
[349823654,1737453033116,-151.15569928,0.00019173,2]
[349823656,1737453033128,-361.59619366,0.00019173,2]
[349823658,1737453033138,-500.45358545,0.00019173,2]
[349823660,1737453033149,-500.0,0.00019173,2]
[349823662,1737453033160,-1000.0,0.00019177,2]
[349823664,1737453033170,-500.0,0.00019178,2]
[349823666,1737453033180,-500.79720901,0.00019178,2]
[349823668,1737453033189,-500.0,0.00019178,2]
[349823670,1737453033199,-492.19180061,0.00019178,2]
[349823671,1737453033209,-500.0,0.00019178,2]
[349823673,1737453033219,-500.0,0.00019178,2]
[349823675,1737453033229,-500.0,0.00019178,2]
[349823677,1737453033239,-500.0,0.00019178,2]
[349823679,1737453033249,-500.0,0.00019178,2]
[349823681,1737453033259,-500.0,0.00019178,2]
[349823682,1737453033269,-500.0,0.00019178,2]
[349823684,1737453033279,-500.0,0.00019178,2]
[349823686,1737453033289,-500.0,0.00019178,2]
[349823688,1737453033299,-500.0,0.00019178,2]
[349823690,1737453033308,-500.0,0.00019178,2]
[349823692,1737453033318,-1852.7,0.00019178,2]
[349823694,1737453033328,-500.0,0.00019178,2]
[349823695,1737453033338,-500.0,0.00019178,2]
[349823697,1737453033348,-332.86049537,0.00019178,2]
[349823699,1737453033358,-500.0,0.00019178,2]
[349823701,1737453033368,-500.0,0.00019178,2]
[349823703,1737453033379,-500.0,0.00019178,2]
[349823705,1737453033389,-500.0,0.00019178,2]
[349823707,1737453033401,-500.0,0.00019178,2]
[349823709,1737453033411,-500.0,0.00019178,2]
[349823711,1737453033422,-500.0,0.00019178,2]
[349823713,1737453033432,-520.1892351,0.00019178,2]
[349823715,1737453033443,-500.0,0.00019178,2]
[349823717,1737453033454,-500.0,0.00019178,2]
[349823719,1737453033465,-500.0,0.00019178,2]
[349823721,1737453033475,-507.66481303,0.00019178,2]
[349823723,1737453033485,-500.0,0.00019178,2]
[349823724,1737453033495,-500.0,0.00019178,2]
[349823726,1737453033504,-500.0,0.00019178,2]
[349823728,1737453033514,-500.0,0.00019178,2]
[349823730,1737453033526,-500.0,0.00019178,2]
[349823732,1737453033535,-510.11831722,0.00019178,2]
[349823734,1737453033546,-500.0,0.00019178,2]
[349823736,1737453033556,-500.0,0.00019178,2]
[349823738,1737453033565,-500.0,0.00019178,2]
[349823740,1737453033575,-215.04445155,0.00019178,2]
[349823742,1737453033585,-500.0,0.00019178,2]
[349823744,1737453033595,-500.0,0.00019178,2]
[349823746,1737453033604,-500.18831155,0.00019178,2]
[349823748,1737453033614,-500.0,0.00019178,2]
[349823750,1737453033623,-500.0,0.00019178,2]
[349823751,1737453033632,-500.0,0.00019178,2]
[349823753,1737453033642,-500.0,0.00019178,2]
[349823755,1737453033652,-500.0,0.00019178,2]
[349823757,1737453033662,-500.0,0.00019178,2]
[349823759,1737453033671,-504.49594664,0.00019178,2]
[349823761,1737453033681,-502.35504515,0.00019178,2]
[349823763,1737453033691,-500.0,0.00019178,2]
[349823765,1737453033701,-500.0,0.00019178,2]
[349823767,1737453033711,-505.62005127,0.00019178,2]
[349823769,1737453033721,-504.220697,0.00019178,2]
[349823771,1737453033730,-500.0,0.00019178,2]
[349823773,1737453033742,-500.0,0.00019178,2]
[349823775,1737453033752,-500.0,0.00019178,2]
[349823777,1737453033762,-500.0,0.00019178,2]
[349823778,1737453033772,-244.07859055,0.00019178,2]
[349823780,1737453033782,-500.0,0.00019178,2]
[349823782,1737453033792,-500.0,0.00019178,2]
[349823783,1737453033802,-500.0,0.00019178,2]
[349823784,1737453033812,-584.92826417,0.00019178,2]
[349823785,1737453033822,-502.33141178,0.00019178,2]
[349823786,1737453033832,-500.0,0.00019178,2]
[349823787,1737453033842,-512.52384005,0.00019178,2]
[349823788,1737453033852,-500.0,0.00019178,2]
[349823789,1737453033863,-575.72,0.00019178,2]
[349823790,1737453033872,-500.0,0.00019178,2]
[349823791,1737453033882,-503.42512501,0.00019178,2]
[349823792,1737453033892,-500.0,0.00019178,2]
[349823793,1737453033997,-503.42719359,0.00019178,2]
[349823794,1737453034008,-500.0,0.00019178,2]
[349823795,1737453034018,-468.71514508,0.00019178,2]
[349823796,1737453034027,-500.0,0.00019178,2]
[349823797,1737453034038,-500.0,0.00019178,2]
[349823798,1737453034047,-500.0,0.00019178,2]
[349823799,1737453034057,-500.0,0.00019178,2]
[349823800,1737453034066,-500.0,0.00019178,2]
[349823801,1737453034077,-504.80910732,0.00019178,2]
[349823802,1737453034086,-500.0,0.00019178,2]
[349823803,1737453034096,-500.0,0.00019178,2]
[349823804,1737453034106,-500.0,0.00019178,2]
[349823805,1737453034116,-500.0,0.00019178,2]
[349823806,1737453034126,-500.0,0.00019178,2]
[349823807,1737453034135,-500.0,0.00019178,2]
[349823808,1737453034146,-500.0,0.00019178,2]
[349823809,1737453034157,-500.0,0.00019178,2]
[349823810,1737453034167,-500.0,0.00019178,2]
[349823811,1737453034177,-505.32682851,0.00019178,2]
[349823812,1737453034188,-500.0,0.00019178,2]
[349823813,1737453034198,-500.0,0.00019178,2]
[349823814,1737453034208,-769.26,0.00019178,2]
[349823815,1737453034217,-500.0,0.00019178,2]
[349823816,1737453034227,-503.86282393,0.00019178,2]
[349823817,1737453034237,-500.0,0.00019178,2]
[349823818,1737453034247,-500.0,0.00019178,2]
[349823819,1737453034257,-500.0,0.00019178,2]
[349823820,1737453034267,-500.0,0.00019178,2]
[349823821,1737453034278,-500.0,0.00019178,2]
[349823823,1737453034288,-500.0,0.00019178,2]
[349823825,1737453034297,-500.0,0.00019178,2]
[349823826,1737453034307,-577.58,0.00019178,2]
[349823828,1737453034317,-500.0,0.00019178,2]
[349823830,1737453034327,-504.47582773,0.00019178,2]
[349823832,1737453034337,-500.0,0.00019178,2]
[349823834,1737453034347,-500.0,0.00019178,2]
[349823836,1737453034357,-500.0,0.00019178,2]
[349823838,1737453034368,-500.0,0.00019178,2]
[349823840,1737453034378,-500.0,0.00019178,2]
[349823842,1737453034387,-500.0,0.00019178,2]
[349823844,1737453034398,-500.0,0.00019178,2]
[349823846,1737453034408,-500.0,0.00019178,2]
[349823847,1737453034417,-500.0,0.00019178,2]
[349823849,1737453034427,-500.0,0.00019178,2]
[349823851,1737453034436,-500.0,0.00019178,2]
[349823853,1737453034446,-500.0,0.00019178,2]
[349823855,1737453034455,-500.0,0.00019178,2]
[349823857,1737453034465,-500.0,0.00019178,2]
[349823858,1737453034474,-500.0,0.00019178,2]
[349823859,1737453034483,-500.0,0.00019178,2]
[349823860,1737453034492,-500.0,0.00019178,2]
[349823861,1737453034501,-500.0,0.00019178,2]
[349823862,1737453034510,-500.0,0.00019178,2]
[349823863,1737453034519,-500.0,0.00019178,2]
[349823864,1737453034528,-408.59581142,0.00019178,2]
[349823865,1737453034537,-500.0,0.00019178,2]
[349823866,1737453034545,-500.0,0.00019178,2]
[349823867,1737453034554,-500.0,0.00019178,2]
[349823868,1737453034563,-500.0,0.00019178,2]
[349823869,1737453034572,-500.0,0.00019178,2]